fUSD/lending_fUSD_20240329
["ID","MTS","AMOUNT","RATE_DAILY","PERIOD"]
[320965458,1711722683594,-262.776931,0.00063,30]
[320965459,1711722683604,-262.776931,0.00063,30]
[320965460,1711722683614,-151.0,0.00063,120]
[320965461,1711722683624,-151.0,0.00063,120]
[320965462,1711722683633,-151.0,0.00063,120]
[320965463,1711722683643,-151.962856,0.00063,120]
[320965464,1711722683653,-151.0,0.00063,120]
[320965465,1711722683662,-151.0,0.00063,120]
[320965466,1711722683671,-151.0,0.00063,45]
[320965467,1711722683681,-151.334142,0.00063,21]
[320965468,1711722683691,-168.899616,0.00063,120]
[320965469,1711722683700,-151.0,0.00063,120]
[320965470,1711722683709,-324.492113,0.00063,120]
[320965471,1711722683719,-324.492113,0.00063,120]
[320965472,1711722683729,-588.107038,0.00063,120]
[320965473,1711722683738,-588.107038,0.00063,120]
[320965474,1711722683748,-294.960875,0.00063,120]
[320965475,1711722683759,-383.269207,0.00063,120]
[320965476,1711722683768,-151.0,0.00063,7]
[320965477,1711722683777,-294.960875,0.00063,120]
[320965478,1711722683786,-383.269207,0.00063,120]
[320965479,1711722683796,-635.225857,0.00063,120]
[320965480,1711722683805,-151.0,0.00063,120]
[320965481,1711722683814,-635.225857,0.00063,120]
[320965482,1711722683824,-151.0,0.00063,120]
[320965483,1711722683833,-247.877888,0.00063,120]
[320965484,1711722683842,-247.877888,0.00063,120]
[320965485,1711722683851,-301.942585,0.00063,120]
[320965486,1711722683861,-325.814409,0.00063,60]
[320965487,1711722683870,-2122.92,0.00063,99]
[320965488,1711722683879,-325.814409,0.00063,60]
[320965489,1711722683888,-265.352896,0.00063,120]
[320965490,1711722683897,-151.0,0.00063,120]
[320965491,1711722683906,-242.931224,0.00063,120]
[320965492,1711722683916,-242.931224,0.00063,120]
[320965493,1711722683925,-152.141664,0.00063,120]
[320965494,1711722683934,-163.082028,0.00063,30]
[320965495,1711722683943,-151.0,0.00063,120]
[320965496,1711722683952,-163.082028,0.00063,30]
[320965497,1711722683962,-151.0,0.00063,120]
[320965498,1711722683970,-151.0,0.00063,120]
[320965499,1711722683980,-151.0,0.00063,120]
[320965500,1711722683989,-151.0,0.00063,120]
[320965501,1711722683999,-151.0,0.00063,120]
[320965502,1711722684010,-151.0,0.00063,120]
[320965503,1711722684019,-155.738275,0.00063,120]
[320965504,1711722684029,-151.0,0.00063,120]
[320965505,1711722684038,-151.0,0.00063,120]
[320965506,1711722684047,-199.289554,0.00063,120]
[320965507,1711722684057,-152.87961,0.00063,120]
[320965508,1711722684065,-150.0,0.00063,15]
[320965509,1711722684076,-150.0,0.00063,15]
[320965510,1711722684086,-705.82843,0.00063,120]
[320965511,1711722684095,-151.0,0.00063,120]
[320965512,1711722684105,-705.82843,0.00063,120]
[320965513,1711722684115,-151.0,0.00063,120]
[320965514,1711722684124,-151.0,0.00063,120]
[320965515,1711722684133,-151.0,0.00063,120]
[320965516,1711722684143,-151.0,0.00063,120]
[320965517,1711722684153,-151.0,0.00063,120]
[320965518,1711722684163,-501.168452,0.00063,120]
[320965519,1711722684172,-151.0,0.00063,120]
[320965520,1711722684182,-501.168452,0.00063,120]
[320965521,1711722684191,-151.0,0.00063,120]
[320965522,1711722684200,-151.0,0.00063,120]
[320965523,1711722684210,-151.0,0.00063,120]
[320965524,1711722684219,-151.0,0.00063,120]
[320965525,1711722684228,-151.0,0.00063,120]
[320965526,1711722684237,-151.0,0.00063,120]
[320965527,1711722684246,-151.0,0.00063,120]
[320965528,1711722684256,-151.0,0.00063,120]
[320965529,1711722684266,-151.0,0.00063,120]
[320965530,1711722684275,-151.0,0.00063,120]
[320965531,1711722684285,-238.688377,0.00063,120]
[320965532,1711722684294,-151.0,0.00063,120]
[320965533,1711722684303,-238.688377,0.00063,120]
[320965534,1711722684312,-151.0,0.00063,120]
[320965535,1711722684322,-151.0,0.00063,7]
[320965536,1711722684331,-151.0,0.00063,120]
[320965537,1711722684340,-151.0,0.00063,120]
[320965538,1711722684349,-151.0,0.00063,120]
[320965539,1711722684359,-151.0,0.00063,120]
[320965540,1711722684368,-198.543438,0.00063,120]
[320965541,1711722684377,-401.0,0.00063,119]
[320965542,1711722684386,-900.0,0.00063037,90]
[320965543,1711722684395,-151.4857083,0.00063037,120]
[320965544,1711722684405,-150.0,0.00063047,120]
[320965545,1711722684414,-243.27777778,0.00063068,120]
[320965546,1711722684423,-150.0,0.00063136,120]
[320965547,1711722684433,-150.0,0.00063158,120]
[320965548,1711722684442,-150.0,0.00063269,120]
[320965549,1711722684451,-150.0,0.00063269,120]
[320965550,1711722684461,-150.0,0.00063269,120]
[320965551,1711722684471,-1000.0,0.00063287,120]
[320965552,1711722684480,-156.65934066,0.0006329,120]
[320965553,1711722684490,-200.0,0.00063311,90]
[320965554,1711722684499,-150.0,0.0006338,120]
[320965555,1711722684508,-152.402122,0.00063399,120]
[320965556,1711722684518,-150.0,0.00063402,120]
[320965557,1711722684527,-151.0,0.00063425,120]
[320965558,1711722684536,-150.0,0.00063491,120]
[320965559,1711722684546,-300.0,0.000635,41]
[320965560,1711722684555,-150.0,0.000635,15]
[320965561,1711722684565,-150.0,0.000635,15]
[320965562,1711722684574,-401.0,0.000635,120]
[320965563,1711722684584,-152.41256319,0.00063521,120]
[320965564,1711722684593,-157.69803795,0.00063523,120]
[320965565,1711722684603,-900.0,0.00063585,90]
[320965566,1711722684612,-150.0,0.00063602,120]
[320965567,1711722684673,-150.0,0.00063669,120]
[320965568,1711722684683,-243.27777778,0.00063671,120]
[320965569,1711722684693,-150.0,0.00063674,120]
[320965570,1711722684705,-150.72698386,0.0006369,96]
[320965571,1711722684715,-150.0,0.00063713,120]
[320965572,1711722684724,-150.0,0.00063824,120]
[320965573,1711722684733,-154.8752919,0.00063843,120]
[320965574,1711722684742,-492.14213387,0.000639,120]
[320965575,1711722684752,-492.14213387,0.000639,120]
[320965576,1711722684763,-492.14213387,0.000639,120]
[320965577,1711722684772,-492.14213387,0.000639,120]
[320965578,1711722684782,-492.14213387,0.000639,120]
[320965579,1711722684792,-492.14213387,0.000639,120]
[320965580,1711722684802,-492.14213387,0.000639,120]
[320965581,1711722684812,-492.14213387,0.000639,120]
[320965582,1711722684822,-492.14213387,0.000639,120]
[320965583,1711722684832,-492.14213387,0.000639,120]
[320965584,1711722684841,-492.14213387,0.000639,120]
[320965585,1711722684851,-492.14213387,0.000639,120]
[320965586,1711722684860,-492.14213387,0.000639,120]
[320965587,1711722684870,-492.14213387,0.000639,120]
[320965588,1711722684881,-492.14213387,0.000639,120]
[320965589,1711722684891,-492.14213387,0.000639,120]
[320965590,1711722684900,-492.14213387,0.000639,120]
[320965591,1711722684910,-492.14213387,0.000639,120]
[320965592,1711722684919,-492.14213387,0.000639,120]
[320965593,1711722684929,-492.64,0.000639,120]
[320965594,1711722684939,-400.12961326,0.000639,120]
[320965595,1711722684948,-150.0,0.00063935,120]
[320965596,1711722684958,-150.0,0.00063935,120]
[320965597,1711722684968,-150.0,0.00063935,120]
[320965598,1711722684977,-800.0,0.00063969,120]
[320965599,1711722684986,-188.5,0.0006398,15]
[320965600,1711722684996,-150.5,0.0006398,15]
[320965601,1711722685007,-200.0,0.00063987,4]
[320965602,1711722685019,-183.0,0.0006399,15]
[320965603,1711722685028,-150.5,0.0006399,15]
[320965604,1711722685038,-150.5,0.0006399,15]
[320965605,1711722685048,-1000.0,0.00064,120]
[320965606,1711722685057,-2523415.32,0.00064,120]
[320965607,1711722685067,-201.593565,0.00064,120]
[320965608,1711722685078,-201.593565,0.00064,120]
[320965609,1711722685087,-151.0,0.00064,120]
[320965610,1711722685097,-151.0,0.00064,120]
[320965611,1711722685106,-262.776931,0.00064,30]
[320965612,1711722685116,-262.776931,0.00064,30]
[320965613,1711722685125,-151.0,0.00064,120]
[320965614,1711722685134,-151.0,0.00064,120]
[320965615,1711722685143,-151.0,0.00064,120]
[320965616,1711722685152,-151.0,0.00064,120]
[320965617,1711722685162,-151.0,0.00064,120]
[320965618,1711722685171,-295.556579,0.00064,45]
[320965619,1711722685180,-151.0,0.00064,120]
[320965620,1711722685189,-324.492113,0.00064,120]
[320965621,1711722685198,-324.492113,0.00064,120]
[320965622,1711722685208,-588.107038,0.00064,120]
[320965623,1711722685217,-588.107038,0.00064,120]
[320965624,1711722685227,-294.960875,0.00064,120]
[320965625,1711722685236,-383.269207,0.00064,120]
[320965626,1711722685245,-151.0,0.00064,7]
[320965627,1711722685253,-294.960875,0.00064,120]
[320965628,1711722685264,-383.269207,0.00064,120]
[320965629,1711722685273,-635.225857,0.00064,120]
[320965630,1711722685282,-635.225857,0.00064,120]
[320965631,1711722685290,-151.0,0.00064,120]
[320965632,1711722685299,-247.877888,0.00064,120]
[320965633,1711722685308,-247.877888,0.00064,120]
[320965634,1711722685317,-325.814409,0.00064,60]
[320965635,1711722685326,-325.814409,0.00064,60]
[320965636,1711722685335,-151.0,0.00064,120]
[320965637,1711722685344,-242.931224,0.00064,120]
[320965638,1711722685353,-242.931224,0.00064,120]
[320965639,1711722685362,-163.082028,0.00064,30]
[320965640,1711722685371,-151.0,0.00064,120]
[320965641,1711722685380,-163.082028,0.00064,30]
[320965642,1711722685389,-151.0,0.00064,120]
[320965643,1711722685398,-151.0,0.00064,120]
[320965644,1711722685407,-195.98,0.00064,30]
[320965645,1711722685416,-151.0,0.00064,120]
[320965646,1711722685426,-151.0,0.00064,120]
[320965647,1711722685435,-151.0,0.00064,120]
[320965648,1711722685444,-151.0,0.00064,120]
[320965649,1711722685453,-151.0,0.00064,120]
[320965650,1711722685462,-151.0,0.00064,120]
[320965651,1711722685471,-150.0,0.00064,15]
[320965652,1711722685480,-150.0,0.00064,15]
[320965653,1711722685490,-705.82843,0.00064,120]
[320965654,1711722685499,-151.0,0.00064,120]
[320965655,1711722685509,-705.82843,0.00064,120]
[320965656,1711722685519,-151.0,0.00064,120]
[320965657,1711722685528,-151.0,0.00064,120]
[320965658,1711722685537,-151.0,0.00064,120]
[320965659,1711722685546,-151.0,0.00064,120]
[320965660,1711722685556,-151.0,0.00064,120]
[320965661,1711722685565,-501.168452,0.00064,120]
[320965662,1711722685574,-151.0,0.00064,120]
[320965663,1711722685583,-501.168452,0.00064,120]
[320965664,1711722685592,-151.0,0.00064,120]
[320965665,1711722685602,-151.0,0.00064,120]
[320965666,1711722685611,-151.0,0.00064,120]
[320965667,1711722685620,-151.0,0.00064,120]
[320965668,1711722685630,-151.0,0.00064,120]
[320965669,1711722685640,-155.225279,0.00064,120]
[320965670,1711722685650,-151.0,0.00064,120]
[320965671,1711722685660,-151.0,0.00064,120]
[320965672,1711722685669,-151.0,0.00064,120]
[320965673,1711722685678,-151.0,0.00064,120]
[320965674,1711722685688,-238.688377,0.00064,120]
[320965675,1711722685697,-151.0,0.00064,120]
[320965676,1711722685706,-238.688377,0.00064,120]
[320965677,1711722685716,-151.0,0.00064,120]
[320965678,1711722685725,-151.0,0.00064,7]
[320965679,1711722685735,-151.0,0.00064,120]
[320965680,1711722685745,-151.0,0.00064,120]
[320965681,1711722685754,-151.0,0.00064,120]
[320965682,1711722685764,-151.0,0.00064,120]
[320965683,1711722685773,-401.0,0.00064,120]
[320965684,1711722685783,-295.675516,0.00064,30]
[320965685,1711722685792,-151.0,0.00064,120]
[320965686,1711722685802,-151.0,0.00064,120]
[320965687,1711722685812,-151.0,0.00064,30]
[320965688,1711722685822,-166.113592,0.00064,30]
[320965689,1711722685832,-151.0,0.00064,120]
[320965690,1711722685842,-582.618186,0.00064,120]
[320965691,1711722685852,-150.0,0.00064046,120]
[320965692,1711722685862,-157.69803795,0.00064101,120]
[320965693,1711722685872,-1000.0,0.00064109,120]
[320965694,1711722685881,-151.4857083,0.00064114,120]
[320965695,1711722685890,-900.0,0.00064133,90]
[320965696,1711722685900,-150.0,0.00064157,120]
[320965697,1711722685909,-1493.20975127,0.00064158,120]
[320965698,1711722685919,-151.0,0.00064187,2]
[320965699,1711722685928,-150.0,0.00064201,120]
[320965700,1711722685937,-1045.8,0.00064232,120]
[320965701,1711722685947,-502.4817,0.00064243,2]
[320965702,1711722685956,-150.0,0.00064268,120]
[320965703,1711722685966,-243.27777778,0.00064274,120]
[320965704,1711722685975,-7547.93178815,0.00064328,44]
[320965705,1711722685984,-154.8752919,0.00064367,120]
[320965706,1711722685994,-150.0,0.00064379,120]
[320965707,1711722686003,-152.402122,0.00064399,120]
[320965708,1711722686014,-160.66712717,0.0006442,120]
[320965709,1711722686024,-234.014,0.0006444,120]
[320965710,1711722686034,-234.015,0.0006444,120]
[320965711,1711722686043,-234.014,0.0006444,120]
[320965712,1711722686053,-234.015,0.0006444,120]
[320965713,1711722686063,-234.014,0.0006444,120]
[320965714,1711722686075,-150.0,0.00064468,120]
[320965715,1711722686084,-150.0,0.0006449,120]
[320965716,1711722686094,-300.0,0.000645,42]
[320965717,1711722686104,-150.0,0.000645,15]
[320965718,1711722686113,-150.0,0.000645,15]
[320965719,1711722686123,-401.0,0.000645,120]
[320965720,1711722686132,-1120.77280022,0.00064514,120]
[320965721,1711722686141,-40129.50097895,0.0006455,11]
[320965722,1711722686152,-153.24174957,0.00064577,120]
[320965723,1711722686161,-1493.20975127,0.00064597,120]
[320965724,1711722686171,-152.99,0.000646,11]
[320965725,1711722686180,-152.99,0.000646,11]
[320965726,1711722686189,-152.99,0.000646,11]
[320965727,1711722686199,-152.99,0.000646,11]
[320965728,1711722686208,-152.99,0.000646,11]
[320965729,1711722686217,-152.99,0.000646,11]
[320965730,1711722686226,-152.99,0.000646,11]
[320965731,1711722686236,-152.99,0.000646,11]
[320965732,1711722686245,-188.59,0.000646,11]
[320965733,1711722686254,-150.0,0.00064601,120]
[320965734,1711722686265,-150.0,0.00064601,120]
[320965735,1711722686275,-150.0,0.00064673,30]
[320965736,1711722686284,-900.0,0.00064681,90]
[320965737,1711722686293,-150.0,0.00064712,120]
[320965738,1711722686303,-150.0,0.00064734,120]
[320965739,1711722686312,-151.0,0.00064767,120]
[320965740,1711722686321,-200.0,0.00064786,120]
[320965741,1711722686331,-153.24174957,0.00064796,120]
[320965742,1711722686341,-17419.38551971,0.000648,60]
[320965743,1711722686350,-150.0,0.00064823,120]
[320965744,1711722686360,-1493.20975127,0.00064831,120]
[320965745,1711722686369,-150.0,0.00064837,30]
[320965746,1711722686379,-1120.77280022,0.00064842,120]
[320965747,1711722686388,-7819.3690391,0.00064851,120]
[320965748,1711722686397,-3885.23354459,0.00064852,120]
[320965749,1711722686407,-3885.23354459,0.00064854,120]
[320965750,1711722686416,-11817.12377264,0.00064855,120]
[320965751,1711722686425,-3719.74126589,0.00064856,120]
[320965752,1711722686435,-5098.54633189,0.00064856,120]
[320965753,1711722686444,-3885.23354459,0.00064857,120]
[320965754,1711722686453,-1101.20084833,0.00064858,120]
[320965755,1711722686463,-11787.53052612,0.0006486,120]
[320965756,1711722686472,-11787.53052612,0.0006486,120]
[320965757,1711722686481,-5486.4034888,0.0006486,120]
[320965758,1711722686490,-11817.12377264,0.00064865,120]
[320965759,1711722686499,-206.97003773,0.00064865,120]
[320965760,1711722686509,-491.84979761,0.00064868,120]
[320965761,1711722686519,-9504.30101078,0.00064868,120]
[320965762,1711722686529,-472.7885742,0.00064869,68]
[320965763,1711722686538,-7770.46708916,0.00064869,120]
[320965764,1711722686548,-3719.74126589,0.00064869,120]
[320965765,1711722686558,-992.95367214,0.0006487,120]
[320965766,1711722686567,-196.73991904,0.00064871,120]
[320965767,1711722686577,-7819.3690391,0.00064871,120]
[320965768,1711722686586,-9504.30101078,0.00064871,120]
[320965769,1711722686595,-2126.26125195,0.00064876,120]
[320965770,1711722686605,-3885.23354459,0.00064876,120]
[320965771,1711722686614,-243.27777778,0.00064877,120]
[320965772,1711722686623,-992.95367214,0.00064877,120]
[320965773,1711722686633,-11787.53052612,0.00064878,120]
[320965774,1711722686642,-7819.3690391,0.00064878,120]
[320965775,1711722686652,-5098.54633189,0.0006488,120]
[320965776,1711722686662,-3378.16403492,0.00064882,120]
[320965777,1711722686672,-206.97003773,0.00064882,120]
[320965778,1711722686682,-196.73991904,0.00064883,120]
[320965779,1711722686691,-1101.20084833,0.00064884,120]
[320965780,1711722686700,-9504.30101078,0.00064884,120]
[320965781,1711722686710,-11817.12377264,0.00064885,120]
[320965782,1711722686720,-7770.46708916,0.00064892,120]
[320965783,1711722686729,-491.84979761,0.00064892,120]
[320965784,1711722686739,-456.24653019,0.00064893,120]
[320965785,1711722686749,-3378.16403492,0.00064894,120]
[320965786,1711722686758,-1101.20084833,0.00064896,120]
[320965787,1711722686769,-11817.12377264,0.00064896,120]
[320965788,1711722686779,-5486.4034888,0.00064898,120]
[320965789,1711722686788,-196.73991904,0.00064899,120]
[320965790,1711722686798,-152.11703282,0.000649,120]
[320965791,1711722686807,-479.0,0.000649,50]
[320965792,1711722686818,-806.90977341,0.000649,14]
[320965793,1711722686827,-401.0,0.000649,40]
[320965794,1711722686837,-992.95367214,0.000649,120]
[320965795,1711722686846,-206.97003773,0.00064901,120]
[320965796,1711722686856,-3378.16403492,0.00064902,120]
[320965797,1711722686866,-206.97003773,0.00064903,120]
[320965798,1711722686876,-7819.3690391,0.00064903,120]
[320965799,1711722686885,-196.73991904,0.00064904,120]
[320965800,1711722686895,-11817.12377264,0.00064906,120]
[320965801,1711722686904,-196.73991904,0.00064906,120]
[320965802,1711722686913,-1101.20084833,0.00064908,120]
[320965803,1711722686923,-992.95367214,0.0006491,120]
[320965804,1711722686932,-3885.23354459,0.0006491,120]
[320965805,1711722686942,-9504.30101078,0.0006491,120]
[320965806,1711722686952,-312.76,0.00064912,2]
[320965807,1711722686961,-1323.93822952,0.00064913,120]
[320965808,1711722686971,-992.95367214,0.00064913,120]
[320965809,1711722686981,-7770.46708916,0.00064913,120]
[320965810,1711722686990,-11787.53052612,0.00064913,120]
[320965811,1711722687000,-5098.54633189,0.00064915,120]
[320965812,1711722687010,-491.84979761,0.00064918,120]
[320965813,1711722687021,-2126.26125195,0.00064919,120]
[320965814,1711722687030,-1323.93822952,0.0006492,120]
[320965815,1711722687039,-7770.46708916,0.0006492,120]
[320965816,1711722687049,-167.57646552,0.0006492,120]
[320965817,1711722687059,-7770.46708916,0.00064921,120]
[320965818,1711722687071,-206.97003773,0.00064921,120]
[320965819,1711722687081,-992.95367214,0.00064922,120]
[320965820,1711722687090,-7770.46708916,0.00064922,120]
[320965821,1711722687100,-7819.3690391,0.00064923,120]
[320965822,1711722687110,-3378.16403492,0.00064924,120]
[320965823,1711722687119,-1101.20084833,0.00064924,120]
[320965824,1711722687129,-456.24653019,0.00064925,120]
[320965825,1711722687138,-206.97003773,0.00064925,120]
[320965826,1711722687148,-167.57646552,0.00064926,120]
[320965827,1711722687160,-11817.12377264,0.00064926,120]
[320965828,1711722687169,-3378.16403492,0.00064927,120]
[320965829,1711722687179,-3378.16403492,0.00064927,120]
[320965830,1711722687188,-5486.4034888,0.00064928,120]
[320965831,1711722687198,-1323.93822952,0.00064929,120]
[320965832,1711722687208,-1062.04,0.00064931,120]
[320965833,1711722687218,-5098.54633189,0.00064931,120]
[320965834,1711722687227,-11817.12377264,0.00064932,120]
[320965835,1711722687237,-3885.23354459,0.00064933,120]
[320965836,1711722687247,-150.0,0.00064934,120]
[320965837,1711722687256,-2126.26125195,0.00064935,120]
[320965838,1711722687268,-5486.4034888,0.00064935,120]
[320965839,1711722687277,-491.84979761,0.00064935,120]
[320965840,1711722687287,-5098.54633189,0.00064936,120]
[320965841,1711722687297,-167.57646552,0.00064937,120]
[320965842,1711722687306,-1323.93822952,0.00064937,120]
[320965843,1711722687315,-5098.54633189,0.0006494,120]
[320965844,1711722687325,-9504.30101078,0.0006494,120]
[320965845,1711722687335,-491.84979761,0.00064942,120]
[320965846,1711722687345,-7819.3690391,0.00064943,120]
[320965847,1711722687355,-9504.30101078,0.00064944,120]
[320965848,1711722687364,-1101.20084833,0.00064944,120]
[320965849,1711722687374,-5486.4034888,0.00064945,120]
[320965850,1711722687384,-2126.26125195,0.00064946,120]
[320965851,1711722687394,-3719.74126589,0.00064946,120]
[320965852,1711722687404,-3719.74126589,0.00064946,120]
[320965853,1711722687414,-456.24653019,0.00064947,120]
[320965854,1711722687423,-167.57646552,0.00064947,120]
[320965855,1711722687433,-7770.46708916,0.00064948,120]
[320965856,1711722687442,-5486.4034888,0.0006495,120]
[320965857,1711722687452,-7819.3690391,0.00064951,120]
[320965858,1711722687461,-456.24653019,0.00064952,120]
[320965859,1711722687470,-456.24653019,0.00064953,120]
[320965860,1711722687480,-2126.26125195,0.00064953,120]
[320965861,1711722687489,-1323.93822952,0.00064953,120]
[320965862,1711722687499,-5486.4034888,0.00064957,120]
[320965863,1711722687509,-206.97003773,0.00064957,120]
[320965864,1711722687519,-167.57646552,0.00064959,120]
[320965865,1711722687529,-1101.20084833,0.00064961,120]
[320965866,1711722687538,-456.24653019,0.00064963,120]
[320965867,1711722687548,-196.73991904,0.00064963,120]
[320965868,1711722687558,-491.84979761,0.00064963,120]
[320965869,1711722687568,-196.73991904,0.00064966,120]
[320965870,1711722687578,-2126.26125195,0.00064966,120]
[320965871,1711722687589,-11787.53052612,0.00064969,120]
[320965872,1711722687599,-3885.23354459,0.00064969,120]
[320965873,1711722687609,-5098.54633189,0.00064969,120]
[320965874,1711722687619,-2126.26125195,0.00064969,120]
[320965875,1711722687629,-456.24653019,0.0006497,120]
[320965876,1711722687639,-3719.74126589,0.0006497,120]
[320965877,1711722687649,-9504.30101078,0.00064972,120]
[320965878,1711722687659,-3378.16403492,0.00064972,120]
[320965879,1711722687669,-11787.53052612,0.00064972,120]
[320965880,1711722687678,-167.57646552,0.00064973,120]
[320965881,1711722687687,-992.95367214,0.00064974,120]
[320965882,1711722687697,-3719.74126589,0.00064976,120]
[320965883,1711722687707,-1323.93822952,0.00064976,120]
[320965884,1711722687717,-3719.74126589,0.00064977,120]
[320965885,1711722687731,-11787.53052612,0.00064977,120]
[320965886,1711722687741,-491.84979761,0.00064978,120]
[320965887,1711722687750,-1323.93822952,0.00064978,120]
[320965888,1711722687759,-167.57646552,0.00064979,120]
[320965889,1711722687770,-200.0,0.00064987,5]
[320965890,1711722687780,-243.32970923,0.0006499,30]
[320965891,1711722687790,-150.0,0.00064997,30]
[320965892,1711722687800,-205.41101901,0.00064999,120]
[320965893,1711722687809,-7781.12662433,0.00064999,120]
[320965894,1711722687819,-1178.85785011,0.00065,31]
[320965895,1711722687828,-692.62791859,0.00065,120]
[320965896,1711722687838,-3375299.40723854,0.00065,120]
[320965897,1711722688213,-359006.02909818,0.00065,120]
[320965898,1711722688223,-210.0,0.00065,30]
[320965899,1711722688232,-1830.24635108,0.00065,30]
[320965900,1711722688241,-210.0,0.00065,30]
[320965901,1711722688250,-202.0,0.00065,30]
[320965902,1711722688259,-2000.0,0.00065,30]
[320965903,1711722688270,-200.0,0.00065,30]
[320965904,1711722688279,-1000.0,0.00065,120]
[320965905,1711722688288,-151.0,0.00065,120]
[320965906,1711722688298,-151.0,0.00065,120]
[320965907,1711722688307,-152.830462,0.00065,120]
[320965908,1711722688316,-151.0,0.00065,120]
[320965909,1711722688326,-273.69,0.00065,15]
[320965910,1711722688335,-151.0,0.00065,120]
[320965911,1711722688344,-151.0,0.00065,120]
[320965912,1711722688355,-151.0,0.00065,120]
[320965913,1711722688364,-151.0,0.00065,120]
[320965914,1711722688373,-151.0,0.00065,7]
[320965915,1711722688383,-151.0,0.00065,7]
[320965916,1711722688393,-151.0,0.00065,120]
[320965917,1711722688402,-151.0,0.00065,120]
[320965918,1711722688412,-151.0,0.00065,120]
[320965919,1711722688422,-151.0,0.00065,120]
[320965920,1711722688431,-151.0,0.00065,120]
[320965921,1711722688441,-151.0,0.00065,120]
[320965922,1711722688450,-2000.0,0.00065,30]
[320965923,1711722688459,-200.0,0.00065,30]
[320965924,1711722688469,-151.0,0.00065,120]
[320965925,1711722688478,-151.0,0.00065,14]
[320965926,1711722688487,-151.0,0.00065,14]
[320965927,1711722688496,-151.0,0.00065,120]
[320965928,1711722688505,-151.0,0.00065,120]
[320965929,1711722688515,-151.0,0.00065,120]
[320965930,1711722688525,-151.0,0.00065,120]
[320965931,1711722688534,-151.969392,0.00065,120]
[320965932,1711722688543,-501.914942,0.00065,120]
[320965933,1711722688553,-151.0,0.00065,120]
[320965934,1711722688562,-201.593565,0.00065,120]
[320965935,1711722688572,-201.593565,0.00065,120]
[320965936,1711722688581,-151.0,0.00065,120]
[320965937,1711722688591,-151.0,0.00065,120]
[320965938,1711722688600,-262.776931,0.00065,30]
[320965939,1711722688609,-262.776931,0.00065,30]
[320965940,1711722688619,-151.0,0.00065,120]
[320965941,1711722688628,-151.0,0.00065,120]
[320965942,1711722688637,-151.0,0.00065,120]
[320965943,1711722688647,-151.0,0.00065,120]
[320965944,1711722688656,-151.0,0.00065,120]
[320965945,1711722688666,-151.0,0.00065,120]
[320965946,1711722688677,-324.492113,0.00065,120]
[320965947,1711722688687,-324.492113,0.00065,120]
[320965948,1711722688696,-588.107038,0.00065,120]
[320965949,1711722688706,-588.107038,0.00065,120]
[320965950,1711722688715,-294.960875,0.00065,120]
[320965951,1711722688725,-383.269207,0.00065,120]
[320965952,1711722688734,-151.0,0.00065,7]
[320965953,1711722688744,-294.960875,0.00065,120]
[320965954,1711722688753,-383.269207,0.00065,120]
[320965955,1711722688763,-635.225857,0.00065,120]
[320965956,1711722688772,-635.225857,0.00065,120]
[320965957,1711722688781,-151.0,0.00065,120]